bitfinex/quotes_SOLUSD_20250611
["timestamp","ask_amount","ask_price","bid_price","bid_amount"]
[1749676396670,0.28432314,163.6,163.59,10.0]
[1749676400241,0.28432314,163.6,163.58,10.0]
[1749676400547,18.29452147,163.6,163.58,10.0]
[1749676401149,18.29452147,163.6,163.57,10.0]
[1749676401559,2.48773009,163.65,163.62,10.0]
[1749676401868,28.48773009,163.65,163.62,28.01019833]
[1749676402045,0.28432314,163.64,163.62,28.01019833]
[1749676402240,0.28432314,163.64,163.62,10.0]
[1749676402452,28.48773009,163.65,163.62,10.0]
[1749676402862,0.28432314,163.64,163.62,10.0]
[1749676404342,0.28432314,163.64,163.62,28.01019833]
[1749676404568,0.28432314,163.64,163.62,10.0]
[1749676405851,2.48773009,163.65,163.62,10.0]
[1749676406051,2.48773009,163.65,163.63,10.0]
[1749676406267,0.28432314,163.64,163.63,10.0]
[1749676407257,2.48773009,163.65,163.64,10.0]
[1749676408849,2.48773009,163.65,163.64,28.01019833]
[1749676410570,2.48773009,163.65,163.64,29.53669604]
[1749676410766,2.48773009,163.65,163.64,29.53668222]
[1749676410968,2.48773009,163.65,163.64,28.01019833]
[1749676411155,2.48773009,163.65,163.64,29.53667969]
[1749676411767,2.48773009,163.65,163.64,29.53666722]
[1749676411971,2.48773009,163.65,163.64,28.01019833]
[1749676412181,2.48773009,163.65,163.64,29.53666722]
[1749676412382,2.48773009,163.65,163.64,29.53667501]
[1749676412545,2.48773009,163.65,163.64,54.37667248]
[1749676412976,2.48773009,163.65,163.64,52.85019833]
[1749676413350,2.48773009,163.65,163.64,34.84]
[1749676413852,2.48773009,163.65,163.64,52.85019833]
[1749676416758,2.48773009,163.65,163.64,28.01019833]
[1749676418483,2.48773009,163.65,163.64,52.83019833]
[1749676419603,2.48773009,163.65,163.64,10.0]
[1749676424585,2.48773009,163.65,163.64,28.01019833]
[1749676425162,2.48773009,163.65,163.64,10.0]
[1749676425388,2.48773009,163.65,163.64,28.01019833]
[1749676425682,2.48773009,163.65,163.64,10.0]
[1749676426083,2.48773009,163.65,163.64,28.01019833]
[1749676432107,2.48773009,163.65,163.64,46.80200876]
[1749676433097,2.48773009,163.65,163.64,48.46180876]
[1749676434587,2.48773009,163.65,163.64,48.96180876]
[1749676434777,2.48773009,163.65,163.64,48.46180876]
[1749676436691,2.48773009,163.65,163.64,30.45161043]
[1749676436996,2.48773009,163.65,163.64,48.46180876]
[1749676438696,2.48773009,163.65,163.64,135.76180876]
[1749676441573,26.0,163.75,163.65,18.79181043]
[1749676441884,44.01019833,163.75,163.72,10.0]
[1749676442290,44.01019833,163.75,163.71,10.0]
[1749676442476,44.01019833,163.75,163.72,10.0]
[1749676442702,26.0,163.75,163.72,10.0]
[1749676444591,26.0,163.75,163.71,28.01019833]
[1749676444785,26.0,163.75,163.72,10.0]
[1749676445003,44.01019833,163.75,163.72,10.0]
[1749676445185,26.0,163.75,163.72,10.0]
[1749676445499,44.01019833,163.75,163.72,10.0]
[1749676446399,0.28432314,163.77,163.72,10.0]
[1749676446605,0.28432314,163.75,163.73,10.0]
[1749676448303,26.0,163.76,163.73,28.01019833]
[1749676449076,0.28432314,163.77,163.74,10.0]
[1749676449292,0.28432314,163.77,163.74,28.01019833]
[1749676449781,26.0,163.78,163.74,28.01019833]
[1749676450117,26.0,163.78,163.75,10.0]
[1749676450794,18.01019833,163.8,163.76,10.0]
[1749676450980,0.14216157,163.79,163.76,10.0]
[1749676451187,0.28432314,163.79,163.76,10.0]
[1749676452424,0.28432314,163.79,163.75,10.0]
[1749676452425,18.01019833,163.78,163.75,10.0]
[1749676452590,18.29452147,163.77,163.76,10.0]
[1749676452790,0.28432314,163.77,163.76,10.0]
[1749676453101,18.29452147,163.77,163.73,10.0]
[1749676453414,0.28432314,163.77,163.74,10.0]
[1749676453909,0.28432314,163.77,163.72,10.0]
[1749676454102,0.28432314,163.77,163.73,10.0]
[1749676454294,6.39062329,163.77,163.74,10.0]
[1749676454494,18.29452147,163.75,163.74,10.0]
[1749676454697,18.29452147,163.75,163.73,10.0]
[1749676454915,18.01019833,163.74,163.73,10.0]
[1749676455118,0.28432314,163.75,163.74,10.0]
[1749676455286,0.28432314,163.76,163.74,10.0]
[1749676455492,18.29452147,163.76,163.74,10.0]
[1749676455888,0.28432314,163.76,163.74,10.0]
[1749676456089,18.29452147,163.76,163.74,10.0]
[1749676458213,0.28432314,163.76,163.74,10.0]
[1749676458415,18.29452147,163.76,163.74,10.0]
[1749676459590,0.28432314,163.76,163.74,10.0]
[1749676462598,0.28432314,163.77,163.75,10.0]
[1749676462908,0.28432314,163.77,163.76,10.0]
[1749676463606,0.28432314,163.79,163.77,10.0]
[1749676463788,0.14216157,163.79,163.77,10.0]
[1749676464302,0.28432314,163.79,163.77,10.0]
[1749676464807,18.29452147,163.79,163.77,10.0]
[1749676466000,26.0,163.8,163.77,10.0]
[1749676466200,18.01019833,163.79,163.77,10.0]
[1749676467695,18.29452147,163.79,163.77,10.0]
[1749676468506,18.01019833,163.78,163.77,10.0]
[1749676469102,18.29452147,163.78,163.77,10.0]
[1749676470326,18.29452147,163.78,163.75,10.0]
[1749676470505,18.29452147,163.78,163.77,10.0]
[1749676471618,0.28432314,163.78,163.77,10.0]
[1749676473834,44.01019833,163.8,163.77,10.0]
[1749676474028,0.28432314,163.79,163.77,10.0]
[1749676474740,0.14216157,163.79,163.77,10.0]
[1749676475036,26.0,163.8,163.77,10.0]
[1749676475037,44.01019833,163.8,163.77,10.0]
[1749676476028,26.0,163.8,163.77,10.0]
[1749676477621,5.28,163.81,163.79,10.0]
[1749676478107,18.58192323,163.82,163.79,10.0]
[1749676479037,18.58192323,163.82,163.8,10.0]
[1749676479327,0.0717249,163.82,163.8,10.0]
[1749676480034,0.0717249,163.82,163.79,10.0]
[1749676480206,0.0717249,163.82,163.8,10.0]
[1749676481725,0.0717249,163.82,163.8,10.0]
[1749676484421,0.28432314,163.8,163.77,10.0]
[1749676484624,18.01019833,163.78,163.77,10.0]
[1749676484934,18.01019833,163.78,163.77,11.52563067]
[1749676485136,18.01019833,163.78,163.77,10.0]
[1749676485435,18.01019833,163.79,163.77,10.0]
[1749676486333,18.01019833,163.79,163.76,41.37430235]
[1749676486533,6.46043887,163.82,163.77,10.0]
[1749676486834,6.46043887,163.82,163.78,10.0]
[1749676486835,0.28432314,163.8,163.78,10.0]
[1749676487037,18.01019833,163.8,163.78,10.0]
[1749676487227,0.28432314,163.81,163.78,10.0]
[1749676487415,18.29452147,163.81,163.78,10.0]
[1749676489230,0.28432314,163.81,163.78,10.0]
[1749676489426,18.01019833,163.8,163.78,10.0]
[1749676490430,18.01019833,163.8,163.77,10.0]
[1749676490628,18.01019833,163.8,163.78,10.0]
[1749676494318,0.35604804,163.82,163.78,10.0]
[1749676494745,18.01019833,163.8,163.78,10.0]
[1749676495421,0.35604804,163.82,163.78,10.0]
[1749676495836,18.01019833,163.8,163.78,10.0]
[1749676498528,6.1046963,163.81,163.78,10.0]
[1749676498843,18.01019833,163.79,163.76,51.37430235]
[1749676499027,18.01019833,163.77,163.76,41.37430235]
[1749676499837,6.10537883,163.79,163.76,41.37430235]
[1749676500037,18.01019833,163.77,163.76,41.37430235]
[1749676500743,18.29452147,163.77,163.76,41.37430235]
[1749676501827,24.40064591,163.77,163.76,41.37430235]
[1749676502032,0.28432314,163.76,163.72,10.0]
[1749676502331,18.01019833,163.73,163.69,10.0]
[1749676502648,18.01019833,163.73,163.67,1.5902]
[1749676502649,0.28432314,163.72,163.67,10.0]
[1749676502831,18.01019833,163.69,163.67,10.0]
[1749676503150,18.01019833,163.68,163.65,10.0]
[1749676503336,26.0,163.71,163.63,10.0]
[1749676503652,18.01019833,163.65,163.64,10.0]
[1749676504058,24.12080022,163.65,163.64,10.0]
[1749676504244,24.12080022,163.65,163.63,10.0]
[1749676504447,18.01019833,163.64,163.61,10.0]
[1749676504643,18.01019833,163.62,163.61,10.0]
[1749676504953,18.01019833,163.62,163.6,10.0]
[1749676505347,21.38710662,163.65,163.6,10.0]
[1749676505348,18.01019833,163.61,163.6,10.0]
[1749676505540,18.01019833,163.61,163.59,63.43813163]
[1749676505541,18.01019833,163.61,163.59,73.43813163]
[1749676505736,21.38710662,163.65,163.59,73.43813163]
[1749676505737,18.01019833,163.6,163.59,63.43813163]
[1749676505930,24.4069909,163.6,163.59,63.43813163]
[1749676507350,24.4069909,163.6,163.55,10.0]
[1749676507351,0.14216157,163.59,163.55,10.0]
[1749676507552,18.01019833,163.56,163.55,10.0]
[1749676507840,18.01019833,163.56,163.52,10.0]
[1749676508041,18.01019833,163.56,163.54,10.0]
[1749676508242,18.01019833,163.56,163.52,35.12]
[1749676508450,18.01019833,163.56,163.54,10.0]
[1749676509358,18.01019833,163.55,163.54,10.0]
[1749676511838,24.12456593,163.55,163.53,10.0]
[1749676512046,18.01019833,163.54,163.53,10.0]
[1749676512668,26.28432314,163.55,163.53,10.0]
[1749676512852,18.01019833,163.54,163.53,10.0]
[1749676513051,26.28432314,163.55,163.53,10.0]
[1749676513248,18.01019833,163.54,163.53,10.0]
[1749676514946,26.28432314,163.55,163.53,10.0]
[1749676515144,18.01019833,163.54,163.53,10.0]
[1749676516766,18.01019833,163.54,163.52,10.0]
[1749676516975,0.28432314,163.54,163.51,10.0]
[1749676517183,18.01019833,163.52,163.51,10.0]
[1749676518350,18.01019833,163.52,163.5,10.0]
[1749676518550,0.28432314,163.54,163.5,10.0]
[1749676518551,18.01019833,163.51,163.5,10.0]
[1749676520150,18.01019833,163.51,163.49,11.36514418]
[1749676520349,18.01019833,163.51,163.5,10.0]
[1749676521283,18.01019833,163.51,163.49,11.36514418]
[1749676521572,18.01019833,163.51,163.5,10.0]
[1749676521778,18.01019833,163.51,163.49,11.36514418]
[1749676521988,6.3991215,163.54,163.49,11.36514418]
[1749676522206,0.28432314,163.54,163.51,10.0]
[1749676522358,6.11334792,163.58,163.53,10.0]
[1749676522558,26.0,163.55,163.53,10.0]
[1749676523363,0.28432314,163.56,163.53,10.0]
[1749676523565,18.01019833,163.59,163.55,10.0]
[1749676523888,0.28432314,163.58,163.57,10.0]
[1749676524964,26.0,163.6,163.57,10.0]
[1749676525163,0.28432314,163.58,163.57,10.0]
[1749676525377,0.28432314,163.58,163.56,10.0]
[1749676525575,0.28432314,163.58,163.57,10.0]
[1749676525777,26.0,163.6,163.58,10.0]
[1749676526565,5.72432314,163.61,163.58,10.0]
[1749676526886,5.72432314,163.61,163.6,10.0]
[1749676527960,0.28432314,163.61,163.6,10.0]
[1749676528164,44.01019833,163.63,163.6,10.0]
[1749676528366,26.0,163.62,163.6,10.0]
[1749676529115,0.28432314,163.62,163.6,10.0]
[1749676529315,18.29452147,163.62,163.6,10.0]
[1749676530822,18.29452147,163.62,163.59,10.0]
[1749676530996,18.29452147,163.62,163.6,10.0]
[1749676531191,149.1,163.67,163.62,10.0]
[1749676531422,0.28432314,163.64,163.62,10.0]
[1749676531901,0.14216157,163.64,163.62,10.0]
[1749676532308,0.28432314,163.64,163.62,10.0]
[1749676532607,26.0,163.65,163.62,10.0]
[1749676532914,26.0,163.65,163.63,10.0]
[1749676533710,18.01019833,163.68,163.65,10.0]
[1749676533892,0.14216157,163.67,163.65,10.0]
[1749676534321,18.29452147,163.67,163.65,10.0]
[1749676535102,44.01019833,163.68,163.66,10.0]
[1749676535492,0.28432314,163.71,163.66,10.0]
[1749676535797,0.28432314,163.66,163.62,10.0]
[1749676536029,18.29452147,163.63,163.62,10.0]
[1749676536227,0.28432314,163.63,163.62,10.0]
[1749676536823,18.29452147,163.63,163.62,10.0]
[1749676536995,18.29452147,163.63,163.61,10.0]
[1749676537193,26.0,163.65,163.6,10.0]
[1749676537194,0.28432314,163.61,163.6,10.0]
[1749676537432,0.28432314,163.61,163.58,10.0]
[1749676537433,18.29452147,163.61,163.58,10.0]
[1749676537630,18.29452147,163.61,163.6,9.3757799]
[1749676538830,18.29452147,163.61,163.55,25.18]
[1749676538831,170.84910325,163.69,163.61,9.3757799]
[1749676539124,0.28432314,163.63,163.61,9.3757799]
[1749676539331,0.28432314,163.63,163.62,9.3757799]
[1749676541119,18.29452147,163.63,163.62,9.3757799]
[1749676541324,18.29452147,163.63,163.61,9.3757799]
[1749676541508,18.29452147,163.62,163.61,9.3757799]
[1749676541700,18.29452147,163.62,163.6,9.3757799]
[1749676542304,18.01019833,163.61,163.6,9.3757799]
[1749676542502,0.28432314,163.62,163.6,9.3757799]
[1749676542721,18.29452147,163.62,163.6,9.3757799]
[1749676543522,18.29452147,163.61,163.6,9.3757799]
[1749676544302,0.28432314,163.61,163.6,9.3757799]
[1749676544909,18.29452147,163.61,163.6,9.3757799]
[1749676545435,0.28432314,163.62,163.6,9.3757799]
[1749676545638,18.29452147,163.62,163.6,9.3757799]
[1749676547008,0.28432314,163.6,163.59,9.3757799]
[1749676553922,18.29452147,163.6,163.59,9.3757799]
[1749676557063,24.40707125,163.6,163.55,9.3757799]
[1749676557347,0.28432314,163.56,163.55,9.3757799]
[1749676565049,0.28432314,163.56,163.54,9.3757799]
[1749676565254,0.28432314,163.55,163.53,9.3757799]
[1749676566131,18.29452147,163.55,163.53,9.3757799]
[1749676566963,18.29452147,163.55,163.51,9.3757799]
[1749676567141,18.29452147,163.55,163.53,9.3757799]
[1749676568227,6.39802454,163.57,163.53,9.3757799]
[1749676568637,6.39802454,163.57,163.51,9.3757799]
[1749676568839,18.29452147,163.52,163.49,12.32772408]
[1749676569147,0.28432314,163.51,163.5,9.3757799]
[1749676570069,18.29452147,163.51,163.49,1.36514418]
[1749676570247,18.01019833,163.5,163.49,1.36514418]
[1749676570641,24.41072942,163.5,163.49,1.36514418]
[1749676570971,0.28432314,163.5,163.49,1.36514418]
[1749676571945,18.29452147,163.5,163.49,1.36514418]
[1749676583775,18.01019833,163.55,163.5,9.3757799]
[1749676584081,44.01019833,163.55,163.5,27.38597823]
[1749676584247,18.29452147,163.54,163.5,27.38597823]
[1749676584873,0.14216157,163.54,163.51,9.3757799]
[1749676585276,0.28432314,163.54,163.51,9.3757799]
[1749676586474,0.28432314,163.54,163.5,27.38597823]
[1749676586657,18.29452147,163.54,163.51,9.3757799]
[1749676587252,0.28432314,163.54,163.51,9.3757799]
[1749676589971,0.14216157,163.52,163.5,9.3757799]
[1749676590176,0.28432314,163.51,163.5,9.3757799]
[1749676592312,0.28432314,163.54,163.5,9.3757799]
[1749676592591,18.01019833,163.53,163.5,9.3757799]
[1749676593191,18.29452147,163.54,163.5,9.3757799]
[1749676594074,18.01019833,163.53,163.5,9.3757799]
[1749676595465,18.01019833,163.53,163.49,28.75112241]
[1749676595772,18.01019833,163.53,163.5,9.3757799]
[1749676596491,18.01019833,163.53,163.49,10.74092408]
[1749676596803,18.01019833,163.53,163.5,9.3757799]
[1749676598066,18.01019833,163.51,163.49,10.74092408]
[1749676598286,0.28432314,163.5,163.49,10.74092408]
[1749676599590,0.28432314,163.5,163.49,1.36514418]
[1749676600391,0.28432314,163.5,163.49,10.74092408]
[1749676601177,0.28432314,163.5,163.49,1.36514418]
[1749676601396,0.28432314,163.5,163.49,10.74092408]
[1749676602997,0.28432314,163.51,163.49,1.36514418]
[1749676603293,0.28432314,163.51,163.49,10.74092408]
[1749676605400,18.29452147,163.51,163.49,1.36514418]
[1749676606075,6.40016639,163.51,163.49,1.36514418]
[1749676606277,18.29452147,163.5,163.49,1.36514418]
[1749676607501,24.41072942,163.5,163.49,1.36514418]
[1749676616187,69.20253985,163.5,163.49,1.36514418]
[1749676616500,43.20253985,163.5,163.49,1.36514418]
[1749676618504,48.60253985,163.5,163.49,1.36514418]
[1749676621710,43.20253985,163.5,163.49,1.36514418]
[1749676621889,30.14469719,163.54,163.49,1.36514418]
[1749676622209,5.38,163.54,163.5,18.01019833]
[1749676622387,0.28432314,163.52,163.5,18.01019833]
[1749676622589,0.28432314,163.52,163.49,28.75112241]
[1749676622791,26.0,163.53,163.49,28.75112241]
[1749676622991,0.28432314,163.52,163.49,28.75112241]
[1749676623191,0.28432314,163.52,163.49,10.74092408]
[1749676623394,18.29452147,163.52,163.49,1.36514418]
[1749676623599,18.29452147,163.52,163.49,10.74092408]
[1749676624004,0.28432314,163.52,163.49,10.74092408]
[1749676625700,6.39980676,163.52,163.49,10.74092408]
[1749676625896,0.28432314,163.52,163.49,10.74092408]
[1749676626100,0.28432314,163.52,163.49,28.75112241]
[1749676628528,0.28432314,163.52,163.49,10.74092408]
[1749676629839,18.29452147,163.52,163.49,10.74092408]
[1749676633826,0.28432314,163.52,163.49,10.74092408]
[1749676634032,18.29452147,163.52,163.49,10.74092408]
[1749676634821,24.41005903,163.52,163.49,1.36514418]
[1749676635219,18.29452147,163.5,163.49,1.36514418]
[1749676635422,20.80903383,163.54,163.51,9.3757799]
[1749676635423,5.38,163.54,163.51,9.3757799]
[1749676635627,26.0,163.55,163.51,27.38597823]
[1749676635831,26.0,163.55,163.52,18.01019833]
[1749676636020,0.28432314,163.54,163.52,18.01019833]
[1749676636215,0.28432314,163.54,163.51,27.38597823]
[1749676637121,0.28432314,163.54,163.51,9.3757799]
[1749676637432,0.28432314,163.54,163.53,18.01019833]
[1749676637812,0.28432314,163.54,163.52,9.3757799]
[1749676638731,32.1144468,163.55,163.51,9.3757799]
[1749676638913,0.28432314,163.52,163.5,9.3757799]
[1749676640442,0.28432314,163.52,163.51,9.3757799]
[1749676641035,0.28432314,163.54,163.51,9.3757799]
[1749676641213,0.28432314,163.54,163.51,27.38597823]
[1749676642321,0.28432314,163.54,163.51,9.3757799]
[1749676642521,18.29452147,163.54,163.51,9.3757799]
[1749676645345,24.40924197,163.54,163.5,9.3757799]
[1749676645715,18.29452147,163.54,163.51,9.3757799]
[1749676646315,0.28432314,163.54,163.51,9.3757799]
[1749676648225,18.29452147,163.54,163.51,9.3757799]
[1749676649827,24.40924533,163.54,163.5,9.3757799]
[1749676650033,24.40924533,163.54,163.51,9.3757799]
[1749676654245,18.01019833,163.53,163.51,9.3757799]
[1749676655628,6.399047,163.54,163.51,9.3757799]
[1749676655832,18.29452147,163.54,163.51,9.3757799]
[1749676656032,0.28432314,163.54,163.51,9.3757799]
[1749676656227,18.29452147,163.54,163.51,9.3757799]
[1749676657358,11.76755671,163.54,163.51,9.3757799]
[1749676659346,0.28432314,163.54,163.52,9.3757799]
[1749676659651,26.0,163.55,163.52,9.3757799]
[1749676659953,0.14216157,163.54,163.52,9.3757799]
[1749676660324,0.28432314,163.54,163.52,9.3757799]
[1749676661656,0.28432314,163.54,163.52,20.85901347]
[1749676662042,0.28432314,163.54,163.52,9.3757799]
[1749676664343,0.28432314,163.56,163.53,9.3757799]
[1749676665166,11.76755671,163.56,163.53,9.3757799]
[1749676666839,11.76755671,163.56,163.52,20.85901347]
[1749676667049,0.28432314,163.54,163.53,9.3757799]
[1749676668973,0.28432314,163.54,163.52,9.3757799]
[1749676669155,0.28432314,163.54,163.53,9.3757799]
[1749676670387,11.76755671,163.54,163.53,9.3757799]
[1749676671192,11.76755671,163.54,163.51,9.3757799]
[1749676671397,0.28432314,163.52,163.51,9.3757799]
[1749676671899,11.76755671,163.52,163.51,9.3757799]
[1749676673091,11.76755671,163.52,163.49,1.36514418]
[1749676673092,11.76755671,163.52,163.5,9.3757799]
[1749676673304,17.94724811,163.51,163.5,9.3757799]
[1749676674782,17.94724811,163.52,163.5,9.3757799]
[1749676674985,18.08940968,163.51,163.5,9.3757799]
[1749676675192,18.23157125,163.51,163.5,9.3757799]
[1749676682778,25.05017995,163.5,163.49,1.36514418]
[1749676682989,43.13958963,163.5,163.49,1.36514418]
[1749676684105,50.48994077,163.5,163.49,1.36514418]
[1749676684777,43.13958963,163.5,163.49,1.36514418]
[1749676690393,50.48994077,163.5,163.49,1.36514418]
[1749676699391,44.23157125,163.5,163.49,1.36514418]
[1749676699597,26.0,163.5,163.49,1.36514418]
[1749676699910,44.08940968,163.5,163.49,1.36514418]
[1749676700410,50.48994077,163.5,163.49,1.36514418]
[1749676707818,69.13958963,163.5,163.49,1.36514418]
[1749676708022,43.13958963,163.5,163.49,1.36514418]
[1749676710316,50.48994077,163.5,163.49,1.36514418]
[1749676711620,26.28432314,163.5,163.49,1.36514418]
[1749676711810,44.23157125,163.5,163.49,1.36514418]
[1749676713596,0.28432314,163.5,163.49,1.36514418]
[1749676713804,5.34,163.52,163.5,9.3757799]
[1749676714102,0.28432314,163.51,163.5,9.3757799]
[1749676716124,0.28432314,163.51,163.5,27.32302801]
[1749676716629,0.28432314,163.51,163.5,9.3757799]
[1749676727535,0.28432314,163.51,163.49,1.36514418]
[1749676727536,0.28432314,163.51,163.49,10.74092408]
[1749676730035,24.34752423,163.51,163.49,10.74092408]
[1749676730425,18.23157125,163.51,163.49,10.74092408]
[1749676730612,24.3475005,163.51,163.49,10.74092408]
[1749676730936,6.40025239,163.51,163.49,10.74092408]
[1749676731140,24.3475005,163.51,163.49,10.74092408]
[1749676731611,18.23157125,163.51,163.49,10.74092408]
[1749676733338,24.34741006,163.51,163.49,10.74092408]
[1749676733537,24.34741006,163.51,163.49,1.36514418]
[1749676733721,18.23157125,163.5,163.49,1.36514418]
[1749676733925,0.28432314,163.5,163.49,10.74092408]
[1749676735539,0.28432314,163.5,163.49,28.68817219]
[1749676736629,5.34,163.52,163.51,9.3757799]
[1749676736835,5.62432314,163.52,163.51,27.32302801]
[1749676737033,5.62432314,163.52,163.51,9.3757799]
[1749676737240,6.11246943,163.6,163.51,27.32302801]
[1749676737464,17.94724811,163.59,163.54,27.32302801]
[1749676737618,0.28432314,163.58,163.55,9.3757799]
[1749676737818,26.28432314,163.58,163.55,9.3757799]
[1749676738427,44.23157125,163.58,163.54,9.3757799]
[1749676738757,44.23157125,163.58,163.55,10.90364291]
[1749676738958,44.23157125,163.58,163.56,1.52785502]
[1749676739162,44.23157125,163.58,163.55,9.3757799]
[1749676739342,44.23157125,163.58,163.56,1.52785502]
[1749676739544,44.23157125,163.58,163.55,9.3757799]
[1749676740540,44.23157125,163.58,163.56,10.90358813]
[1749676740839,26.28432314,163.58,163.56,9.3757799]
[1749676741563,26.28432314,163.58,163.57,1.5277317]
[1749676741760,26.28432314,163.58,163.57,1.52773765]
[1749676741936,26.28432314,163.58,163.56,9.3757799]
[1749676742135,26.28432314,163.58,163.57,1.52773765]
[1749676743149,26.28432314,163.58,163.56,9.3757799]
[1749676743473,26.28432314,163.58,163.57,1.52773005]
[1749676743656,26.28432314,163.58,163.57,1.52772985]
[1749676744167,26.28432314,163.58,163.56,9.3757799]
[1749676744386,26.28432314,163.58,163.57,1.52773888]
[1749676744544,26.28432314,163.58,163.57,1.52774545]
[1749676744944,26.28432314,163.58,163.56,9.3757799]
[1749676745150,26.28432314,163.58,163.57,1.52774545]
[1749676745443,26.28432314,163.58,163.57,1.52773883]
[1749676745654,26.28432314,163.58,163.57,1.5277287]
[1749676746170,26.28432314,163.58,163.57,1.52769244]
[1749676746562,26.28432314,163.58,163.57,1.5276858]
[1749676747144,17.94724811,163.64,163.61,9.3757799]
[1749676747344,17.94724811,163.65,163.61,9.3757799]
[1749676747579,17.94724811,163.65,163.62,9.3757799]
[1749676747780,0.28432314,163.64,163.62,9.3757799]
[1749676748083,0.28432314,163.64,163.62,27.32302801]
[1749676748381,0.28432314,163.64,163.62,9.3757799]
[1749676748873,0.28432314,163.64,163.63,1.5272013]
[1749676749048,0.28432314,163.64,163.62,9.3757799]
[1749676749374,0.28432314,163.64,163.63,1.5272013]
[1749676749544,0.28432314,163.64,163.63,1.52719331]
[1749676750483,18.23157125,163.64,163.61,9.3757799]
[1749676750678,0.28432314,163.61,163.6,9.3757799]
[1749676751876,0.28432314,163.61,163.6,27.32302801]
[1749676752574,0.28432314,163.64,163.63,9.3757799]
[1749676753379,0.28432314,163.64,163.62,27.32302801]
[1749676753579,0.28432314,163.64,163.63,27.32302801]
[1749676753884,31.32,163.67,163.64,9.3757799]
[1749676754049,0.28432314,163.66,163.64,9.3757799]
[1749676754450,31.32,163.67,163.64,9.3757799]
[1749676754664,0.28432314,163.66,163.64,9.3757799]
[1749676754953,0.14216157,163.66,163.64,9.3757799]
[1749676755275,0.28432314,163.66,163.64,9.3757799]
[1749676755656,0.28432314,163.66,163.64,27.32302801]
[1749676755856,0.28432314,163.66,163.65,9.3757799]
[1749676757077,5.32,163.67,163.65,27.32302801]
[1749676757387,5.60432314,163.67,163.66,9.3757799]
[1749676760472,5.32,163.67,163.66,9.3757799]
[1749676763260,5.32,163.67,163.66,27.32302801]
[1749676764753,0.28432314,163.68,163.66,27.32302801]
[1749676765176,0.28432314,163.68,163.67,9.3757799]
[1749676769679,24.34105316,163.68,163.66,9.3757799]
[1749676769886,24.34105316,163.68,163.67,9.3757799]
[1749676771963,6.39380505,163.68,163.67,9.3757799]
[1749676773387,0.28432314,163.68,163.67,9.3757799]
[1749676773993,24.34105316,163.68,163.67,9.3757799]
[1749676775465,24.34105316,163.68,163.66,9.3757799]
[1749676775666,24.34105316,163.68,163.67,9.3757799]
[1749676776307,6.39380505,163.68,163.67,9.3757799]
[1749676776605,24.34105316,163.68,163.67,9.3757799]
[1749676778202,0.28432314,163.68,163.67,9.3757799]
[1749676778799,0.28432314,163.68,163.66,9.3757799]
[1749676779105,0.28432314,163.68,163.67,9.3757799]
[1749676780808,6.39380505,163.68,163.67,9.3757799]
[1749676781013,0.28432314,163.68,163.67,9.3757799]
[1749676781811,11.74645495,163.68,163.67,9.3757799]
[1749676782107,0.28432314,163.68,163.67,9.3757799]
[1749676783404,17.85593686,163.68,163.65,9.3757799]
[1749676783612,0.28432314,163.68,163.67,9.3757799]
[1749676786615,6.10844499,163.71,163.68,9.3757799]
[1749676786795,0.28432314,163.7,163.68,9.3757799]
[1749676787200,0.28432314,163.7,163.69,9.3757799]
[1749676788098,0.28432314,163.7,163.69,20.83791171]
[1749676789022,0.28432314,163.7,163.69,9.3757799]
[1749676793012,0.28432314,163.7,163.69,10.90240224]
[1749676793814,0.28432314,163.7,163.69,10.90241151]
[1749676794524,0.28432314,163.7,163.69,9.3757799]
[1749676795048,0.28432314,163.7,163.69,20.83791171]
[1749676795811,0.28432314,163.7,163.69,22.36453405]
[1749676796508,0.28432314,163.7,163.69,9.3757799]
[1749676796715,0.28432314,163.7,163.69,20.83791171]
[1749676796901,0.28432314,163.7,163.69,9.3757799]
[1749676797102,0.28432314,163.7,163.69,10.9023421]
[1749676797320,0.28432314,163.7,163.69,10.902341]
[1749676797601,0.28432314,163.7,163.69,22.36446149]
[1749676797817,0.28432314,163.7,163.69,20.83791171]
[1749676798200,0.28432314,163.7,163.69,22.36446291]
[1749676798401,0.28432314,163.7,163.69,22.3644629]
[1749676798614,0.28432314,163.7,163.69,10.90233109]
[1749676798823,0.28432314,163.7,163.69,10.90232922]
[1749676799021,0.28432314,163.7,163.69,9.3757799]
[1749676799523,0.28432314,163.7,163.69,10.90232922]
[1749676800122,0.28432314,163.7,163.69,9.3757799]
[1749676800330,0.28432314,163.7,163.69,10.9023385]